Cogmind - Beta 10.2 @@@ ROGUE MODE // 2020.12.18 @ 22:15:12 Player: Luigi Panache Result: Destroyed by D-53 Grenadier with Mini Grenade Launcher Performance ------------- Evolutions (0) 0 Regions Visited (2) 400 Robots Destroyed (20) 100 Value Destroyed (449) 449 Prototype IDs (0) 0 Alien Tech Used (0) 0 Bonus (0) 0 TOTAL SCORE: 949 Bonus ------- None Cogmind --------- Core Integrity 0/250 Matter 292/300 Energy 77/100 System Corruption 0% Temperature Cool (0) Movement Core (300) Ox5 Location -10/Mines Parts ------- > --- POWER (1) -------- (None) > --- PROPULSION (2) --- (None) > --- UTILITY (2) ------ Large Storage Unit Hacking Suite > --- WEAPON (2) ------- (None) > --- INVENTORY (10) --- Light Ion Engine Light Treads Light Treads Small Storage Unit Small Laser Small Laser Mining Claw Peak State ------------ > --- POWER ------------ Ion Engine > --- PROPULSION ------- Light Treads Light Treads > --- UTILITY ---------- Small Storage Unit Hacking Suite > --- WEAPON ----------- Assault Rifle Assault Rifle > --- INVENTORY -------- Light Ion Engine Mining Claw [Rating: 9] Favorites ----------- Power Ion Engine Engine Ion Engine Propulsion Light Treads Treads Light Treads Utility Hacking Suite Device Improved Terrain Scanner Storage Large Storage Unit Hackware Hacking Suite Weapon Assault Rifle Energy Gun EM Pulse Gun Ballistic Gun Assault Rifle Build | -11 -10 -10 ------- Run | Scr Mat Min Slots Evolved . | . . . Power . | . . . Propulsion . | . . . Utility . | . . . Weapon . | . . . Parts Attached 16 | 8 7 1 Power 3 | 2 1 . Engine 3 | 2 1 . Core . | . . . Reactor . | . . . Propulsion 4 | 2 2 . Treads 4 | 2 2 . Leg . | . . . Wheel . | . . . Hover . | . . . Flight . | . . . Utility 4 | 2 2 . Device 1 | 1 . . Storage 2 | 1 1 . Processor . | . . . Hackware 1 | . 1 . Protection . | . . . Artifact . | . . . Weapon 5 | 2 2 1 Energy Gun 2 | . 2 . Energy Cannon . | . . . Ballistic Gun 3 | 2 . 1 Ballistic Cannon . | . . . Launcher . | . . . Special Weapon . | . . . Impact Weapon . | . . . Slashing Weapon . | . . . Piercing Weapon . | . . . Special Melee Weapon . | . . . Unidentified Prototypes . | . . . Parts Lost 6 | . . 6 Power 1 | . . 1 Propulsion 2 | . . 2 Utility . | . . . Weapon 3 | . . 3 Highest Loss Streak 6 | . . 6 Average Slot Usage (%) 99 | . 100 99 Engine 14 | . 14 14 Treads 28 | . 28 28 Device 4 | . 4 . Storage 14 | . 14 14 Hackware 9 | . 9 14 Energy Gun 2 | . 1 14 Ballistic Gun 24 | . 26 13 Naked Turns . | . . . Heaviest Build 25 | 14 25 25 Greatest Support 40 | 40 40 40 Greatest Overweight (x) 1 | 1 . . Average Overweight (x) . | . . . Largest Inventory Capacity 10 | 6 10 10 Average Capacity 7 | 5 7 10 Most Carried 9 | 1 9 8 Average Carried 3 | . 3 7 Final Capacity 10 | 6 10 10 Final Carried 8 | 1 8 7 Class Distribution -------------------- 100% | Mutant Dominant Class ---------------- Mutant | -10/Materials Mutant | -10/Mines Resources | -11 -10 -10 ----------- Run | Scr Mat Min Matter Collected 613 | 310 303 . Remotely . | . . . Salvage Created 668 | 109 559 . Parts 47 | 4 43 . Haulers Intercepted 1 | . 1 . Recyclers Shooed . | . . . Parts Field Recycled . | . . . Retrieved Matter . | . . . Parts Self-Destructed . | . . . Prevented . | . . . Kills | -11 -10 -10 ------- Run | Scr Mat Min Combat Hostiles Destroyed 13 | . 13 . Guns 13 | . 13 . Classes Destroyed 7 | 2 5 . Tunneler 1 | 1 . . Hauler 1 | . 1 . Recycler 1 | 1 . . Operator 1 | . 1 . Watcher 3 | . 3 . Swarmer 3 | . 3 . Grunt 10 | . 10 . Best Kill Streak 4 | 2 4 . Combat Bots Only 3 | . 3 . Max Kills in Single Turn 2 | 1 2 . Gunslinging 1 | . 1 . Exploded . | . . . Melee . | . . . Uniques/NPCs Destroyed . | . . . Combat | -11 -10 -10 -------- Run | Scr Mat Min Damage Taken 1033 | . 451 582 Core 262 | . 98 164 Absorbed by Shields . | . . . Core Remaining (%) 100 | 100 . . Volleys Fired 52 | 5 41 6 Largest 2 | 2 2 2 Hottest 60 | 40 60 60 Shots Fired 100 | 10 82 8 Gun 100 | 10 82 8 Cannon . | . . . Launcher . | . . . Special . | . . . Kinetic 94 | 10 81 3 Thermal . | . . . Explosive . | . . . Electromagnetic 6 | . 1 5 Robot Hit Streak 15 | 8 15 7 Robot Miss Streak 4 | . 4 1 Penetration Max . | . . . Secondary Targets 2 | . 2 . Max Gunslinging Chain 1 | . 1 . Shots Hit Robots 71 | 8 56 7 Core Hits 32 | 3 27 2 Critical Hits . | . . . Critical Kills . | . . . Critical Parts Destroyed . | . . . Melee Attacks . | . . . Impact . | . . . Slashing . | . . . Piercing . | . . . Sneak Attacks . | . . . Combat Hostiles . | . . . Follow-up Attacks . | . . . Damage Inflicted 920 | 90 736 94 Guns 907 | 90 736 81 Cannons . | . . . Explosions . | . . . Melee . | . . . Ramming 13 | . . 13 Kinetic 834 | 90 721 23 Thermal . | . . . Explosive . | . . . Electromagnetic 73 | . 15 58 Impact . | . . . Slashing . | . . . Piercing . | . . . Highest Corruption . | . . . Average Corruption . | . . . Corruption Purged . | . . . Overload Shots . | . . . Overflow Damage . | . . . Projectiles . | . . . Explosions . | . . . Melee . | . . . Knockbacks . | . . . Impact . | . . . Kinetic . | . . . Secondary . | . . . Self-Inflicted Damage . | . . . Shots . | . . . Rammed 1 | . . 1 Targets Rammed 1 | . . 1 Kicked . | . . . Crushed . | . . . Highest Temperature . | . . . Average Temperature . | . . . Received Heat Transfer 210 | . 210 . Siege Activations . | . . . Robots Corrupted . | . . . Combat Hostiles . | . . . Parts Fried . | . . . Impact Corruptions . | . . . Robots Melted . | . . . Combat Hostiles . | . . . Parts Melted . | . . . Heat Transferred . | . . . Parts Sabotaged . | . . . Parts Stolen . | . . . Parts Stripped . | . . . Power Chain Reactions . | . . . Missiles Intercepted . | . . . Alert | -11 -10 -10 ------- Run | Scr Mat Min Peak Influence 212 | 10 212 35 Initial 35 | . 6 35 Average 55 | 3 64 33 Maximum Alert Level 1 | . 1 . Low Security (%) 90 | 100 88 100 Level 1 9 | . 11 . Level 2 . | . . . Level 3 . | . . . Level 4 . | . . . Level 5 . | . . . High Security . | . . . Max Security . | . . . Squads Dispatched 3 | . 3 . Investigation 2 | . 2 . Extermination . | . . . Reinforcement 1 | . 1 . Assault . | . . . Garrison . | . . . Intercept . | . . . Construction Impeded . | . . . Haulers Reinforced . | . . . Stealth | -11 -10 -10 --------- Run | Scr Mat Min Distress Signals . | . . . Communications Jammed . | . . . Distress Signals . | . . . Times Spotted 22 | . 20 2 Peak Tracking Total 3 | . 3 2 Tactical Retreats 1 | . 1 . Traps | -11 -10 -10 ------- Run | Scr Mat Min Traps Triggered 2 | . 2 . Indirectly . | . . . Trap Hack Attempts . | . . . Triggered . | . . . Disarmed . | . . . Reprogrammed . | . . . Reused . | . . . Traps Extracted . | . . . Installed . | . . . Triggered . | . . . Machines | -11 -10 -10 ---------- Run | Scr Mat Min Machines Disabled . | . . . Max in Single Turn . | . . . Machines Sabotaged . | . . . Garrisons Compromised . | . . . Overloaded Fab Kills . | . . . Fab Network Shutdowns . | . . . Hacking | -11 -10 -10 --------- Run | Scr Mat Min Machines Accessed 3 | . 3 . Terminals 3 | . 3 . Fabricators . | . . . Repair Stations . | . . . Recycling Units . | . . . Scanalyzers . | . . . Garrison Access . | . . . Total Hacks 13 | . 13 . Successful 7 | . 7 . Failed 6 | . 6 . Catastrophic . | . . . Database Lockouts . | . . . Manual 13 | . 13 . Terminals 13 | . 13 . Fabricators . | . . . Repair Stations . | . . . Recycling Units . | . . . Scanalyzers . | . . . Garrison Access . | . . . Terminal Hacks 6 | . 6 . Part Schematic 1 | . 1 . Level Access Points 1 | . 1 . Terminal Index 1 | . 1 . Unreport Threat 1 | . 1 . Hauler Manifests 1 | . 1 . Zone Layout 1 | . 1 . Fabricator Hacks . | . . . Repair Station Hacks . | . . . Recycling Unit Hacks . | . . . Scanalyzer . | . . . Garrison Access Hacks . | . . . Unauthorized Hacks 1 | . 1 . Terminals 1 | . 1 . Botnet 1 | . 1 . Fabricators . | . . . Repair Stations . | . . . Recycling Units . | . . . Scanalyzers . | . . . Garrison Access . | . . . Data Cores Recovered . | . . . Used . | . . . Hacking Detections 3 | . 3 . Full Trace Events . | . . . Feedback Events . | . . . Feedback Blocked . | . . . Robot Schematics Acquired . | . . . Robots Built . | . . . Matter . | . . . Time . | . . . Total Robot Build Rating . | . . . Part Schematics Acquired 1 | . 1 . Parts Built . | . . . Matter . | . . . Time . | . . . Total Part Build Rating . | . . . Parts Repaired . | . . . Time . | . . . Parts Recycled . | . . . Recycled Matter . | . . . Retrieved Matter . | . . . Retrieved Components . | . . . Parts Scanalyzed . | . . . Part Schematics Acquired . | . . . Parts Damaged . | . . . Bothacking | -11 -10 -10 ------------ Run | Scr Mat Min Used RIF Installer . | . . . Robots Hacked . | . . . Non-combat . | . . . Combat . | . . . Robot Hacks Applied . | . . . Relay Couplers Released . | . . . Robots Rewired . | . . . Allies Hacked . | . . . Hacks Repelled . | . . . Allies | -11 -10 -10 -------- Run | Scr Mat Min Total Allies . | . . . Largest Group . | . . . Highest-Rated Group . | . . . Highest-Rated Ally . | . . . Total Orders . | . . . Ally Attacks . | . . . Total Damage . | . . . Kills . | . . . Allies Corrupted . | . . . Allies Melted . | . . . Intel | -11 -10 -10 ------- Run | Scr Mat Min Robot Analysis Total . | . . . Derelict Logs Recovered . | . . . Drone Launches . | . . . Drone Recoveries . | . . . Exploration | -11 -10 -10 ------------- Run | Scr Mat Min Turns Passed 1187 | 109 924 154 Spaces Moved 447 | 47 323 77 Core 7 | 7 . . Treads 440 | 40 323 77 Legs . | . . . Wheels . | . . . Hover . | . . . Flight . | . . . Fastest Speed 50 | 50 160 160 Average Speed 158 | 145 160 160 Slowest Speed 160 | 160 160 160 Overloaded Moves . | . . . Propulsion Burnouts . | . . . Robots Hopped . | . . . Cave-ins Triggered . | . . . Exploration Rate (%) 21 | 4 45 15 Regions Visited 2 Branch Regions 1 Pre-discovered Areas . | . . . Known Exits Taken . | . . . Unknown Exits Taken 2 | 1 1 . Scrap Searched . | . . . Spaces Dug . | . . . Terrain Destroyed . | . . . Melee . | . . . Projectile . | . . . AOE . | . . . Terrain Rammed . | . . . Walls Destroyed . | . . . Machines Disabled . | . . . Actions | -11 -10 -10 --------- Run | Scr Mat Min Total 821 | 74 647 100 Wait 298 | 15 268 15 Move 445 | 46 322 77 Hop . | . . . Pick Up 5 | . 5 . Fast Attach 9 | 7 2 . Attach 2 | . 1 1 Detach . | . . . Swap 5 | 1 4 . Drop 4 | . 4 . Fire 52 | 5 41 6 Melee . | . . . Ram . | . . . Kick . | . . . Crush 1 | . . 1 Escape Stasis . | . . . Rewire . | . . . Trap . | . . . Miscellaneous . | . . . Route ------- -11/Scrapyard -10/Materials (discovered 4 exits: *Mat x3 / [*Min]) -10/Mines (discovered 1 exit: *Mat) History --------- Turn | Location | Event 4 | -11/Scrapyard | Discovered new exit (range 15) 110 | -11/Scrapyard | Entered Materials 301 | -10/Materials | Build established: Mutant 429 | -10/Materials | Discovered new exit (range 13) 442 | -10/Materials | Discovered new exit (range 15) 925 | -10/Materials | Discovered new exit (range 9) 925 | -10/Materials | Identified exit to Materials 1034 | -10/Materials | Entered Mines 1052 | -10/Mines | Discovered exit to Materials (range 9) 1144 | -10/Mines | Assembled infested the area 1149 | -10/Mines | Assisted by a Guerilla fighting off Assembled 1177 | -10/Mines | Core integrity fell below 50% 1185 | -10/Mines | Core integrity fell below 20% 1188 | -10/Mines | Destroyed by D-53 Grenadier with Mini Grenade Launcher Last Messages --------------- 01177_ K-01 Serf collects debris. 01178_ Assault Rifle destroyed. 01179_ The unstable cave ceiling collapses. 01179_ U-05 Engineer lays Concrete. 01180_ U-05 Engineer builds a Wall. 01180_ Lgt. Treads destroyed. 01180_ K-01 Serf destroyed. 01181_ The unstable cave ceiling collapses. 01182_ Ion Engine destroyed. 01183_ The unstable cave ceiling collapses. 01183_ U-05 Engineer lays Concrete. 01184_ U-05 Engineer builds a Wall. 01186_ The unstable cave ceiling collapses. 01186_ D-53 Grenadier IFF system glitched. 01186_ EM Pulse Gun destroyed. 01186_ D-53 Grenadier destroyed. 01186_ Lgt. Treads destroyed. 01188_ U-05 Engineer lays Concrete. 01188_ U-05 Engineer builds a Wall. 01188_ Assault Rifle destroyed. Map ----- +----------------------------------------------------+ | ??????????????????????????????????????## #### | | ?????????????????????????????????????## | | ?????????????????????????????????????# # ^ | | ????????????????????????????????????## # ^ ### | | ????????????????????????????????????# # #?## | | ????????????????????????????????????# <^^## ^#??# | | ????????????????????????????????????# #??# | | ????????????????????????????????????## ######## | | ?????????????????????????????????????# | | ?????????????????????????????????????# | | ?????????????????????????????????????## ######### | | ??????????????????????????????????????# ##???????? | | ??????????????????????????????######### #????????? | | ??????????????????????????????# #????????? | | ??????????????????????????????# #########????????? | | ??????????????????????????????# #????????????????? | | ????????????????????########### #????????????????? | | ????????????????????# #????????????????? | | ????????????????????# ###########????????????????? | | ???????????????????## ###?##?????????????????????? | | ???????????????????# # # ##????????????????????? | | ???????????????????# ##???????????????????? | | ?????? ##### ##??????????????????? | | ?????????# = d ###????????????????? | | ?????????????####### #????????????????? | | ???????????????????# @ #?????????????????? | | ???????????????????# #?????????????????? | | ???????????????????## #????????????????? | | ????????????????????## # #????????????????? | | ?????????????????????## #u ####????????????????? | | ??????????????????????###u# ##???????????????????? | | ????????????????????????# ###????????????????????? | | ????????????????????????# #??????????????????????? | | ????????????????????????# ??????????????????????? | | ????????????????????????###??????????????????????? | | ?????????????????????????????????????????????????? | | ?????????????????????????????????????????????????? | | ?????????????????????????????????????????????????? | | ?????????????????????????????????????????????????? | | ?????????????????????????????????????????????????? | | ?????????????????????????????????????????????????? | | ?????????????????????????????????????????????????? | | ?????????????????????????????????????????????????? | | ?????????????????????????????????????????????????? | | ?????????????????????????????????????????????????? | | ?????????????????????????????????????????????????? | | ?????????????????????????????????????????????????? | | ?????????????????????????????????????????????????? | | ?????????????????????????????????????????????????? | | ?????????????????????????????????????????????????? | +----------------------------------------------------+ Best States ------------- Heat Dissipation 25 Energy Generation 10 Energy Capacity 250 Matter Stores 300 Matter Capacity 300 Sight Range 16 Terrain Scan Range 16 Terrain Scan Density 10 Evasion (%) 40 Recoil Reduction 2 Offensive Hacking 10 Item Schematics ----------------- Hcp. Storage Unit | -10/Materials | Hacked Robot Schematics ------------------ None Fabricated ------------ Nothing Alien Tech Used ----------------- None Achievements -------------- None Challenges ------------ None Game ------ Seed SlugGrenadeChronowheel Manual? 0 Play Time 00:09:38 Cumulative 150.7 hours Start 2020.12.18 @ 22:05:11 End 2020.12.18 @ 22:15:12 Sessions 1 Manual Loads 0 Difficulty Rogue Special Mode None Game No. 130 Rogue 36 Adventurer 52 Explorer 42 Win Type - Total 8 Types 8/0/0/0/0/0/0/0/0 Lore% 59 Gallery% 74 Achievement% 57 Wizard Run 0 Options --------- ASCII 0 Keyboard 0 Movement Numpad Keybinds 0 Fullscreen 2 Font 18/TerminusBold Map View 76x50 Tactical HUD 1 Map Filters NONE Filters NONE Steam 1 RUN: c6822754-9491-49cf-8cae-e0fceeb050a0